fUST/lending_fUST_20250810
["ID","MTS","AMOUNT","RATE_DAILY","PERIOD"]
[378320025,1754824238496,-986.143164,0.00020888,2]
[378320026,1754824238509,-2888.86462427,0.00020888,2]
[378320027,1754824238595,-34676.50983158,0.00020888,2]
[378320028,1754824238606,-13104.61988137,0.00020888,2]
[378320029,1754824238648,-461.77222602,0.00020888,2]
[378320222,1754824243618,-369.49564465,0.00020887,2]
[378320252,1754824247003,-90.50435535,0.00020887,2]
[378320253,1754824247013,-611.56228793,0.00020888,2]
[378320254,1754824247056,-5715.0307798,0.00020888,2]
[378320255,1754824261908,150.0,0.0002556,30]
[378320256,1754824273905,294.45524,0.00013699,2]
[378320260,1754824362220,-252.0,0.00020187,2]
[378320265,1754824392661,672.62876874,0.000189,2]
[378320266,1754824426896,-5220.21196855,0.000199,2]
[378320267,1754824426920,-42.45524,0.00020187,2]
[378320268,1754824435135,2400.0,0.0003,120]
[378320271,1754824506257,5000.0,0.00028,30]
[378320310,1754824560607,-5350.0,0.000199,2]
[378320314,1754824694097,448.41917916,0.000189,2]
[378320315,1754824704367,-200.0,0.00021929,15]
[378320316,1754824704394,-300.0,0.00021929,15]
[378320318,1754824713887,-267.12,0.00020876,10]
[378320319,1754824713912,-222.6,0.00020876,10]
[378320320,1754824713936,-185.5,0.00020876,10]
[378320321,1754824715491,200.0,0.00021825,15]
[378320322,1754824716255,300.0,0.00021825,15]
[378320323,1754824723691,154.58,0.00020876,10]
[378320324,1754824729383,836.39,0.00030137,120]
[378320325,1754824735179,772.95,0.00020876,10]
[378320326,1754824753969,-4732.0,0.000199,2]
[378320330,1754824867502,596.98,0.00020876,10]
[378320331,1754824954252,-4627.0,0.000199,2]
[378320332,1754824955540,293.66,0.00020876,10]
[378320334,1754824995099,298.94611944,0.000189,2]
[378320335,1754825014893,200.0,0.00020775,15]
[378320336,1754825015679,300.0,0.00020775,15]
[378320337,1754825021019,-21368.0,0.00019787,2]
[378320340,1754825086408,244.72,0.00020778,10]
[378320343,1754825199372,203.93,0.00020778,10]
[378320344,1754825219553,-249.4197706,0.00019783,2]
[378320345,1754825219576,-3532.0,0.00019787,2]
[378320346,1754825219603,-1512.98419982,0.000199,2]
[378320350,1754825315013,200.0,0.00021825,15]
[378320352,1754825321947,849.74,0.00020778,10]
[378320354,1754825327552,17443.75013194,0.0001,2]
[378320355,1754825327900,456.77617046,0.000248,30]
[378320359,1754825350467,247.59,0.00030137,120]
[378320362,1754825424394,320.590111,0.00013699,2]
[378320683,1754825436528,-171.12727,0.00019768,2]
[378320684,1754825436537,-3188.86797764,0.000199,2]
[378320685,1754825436583,-341.12720039,0.000199,2]
[378320832,1754825438726,-1649.06765076,0.000199,2]
[378320835,1754825438736,-271.7976392,0.00019914,2]
[378320838,1754825438745,-300.0,0.00019999,2]
[378320841,1754825438759,-1200.0,0.00019999,2]
[378320843,1754825438768,-12003.10339925,0.0002,2]
[378320845,1754825438779,-9831.07955805,0.0002,2]
[378320847,1754825438789,-320.590111,0.00020187,2]
[378320849,1754825438798,-206.62009121,0.000206,2]
[378320851,1754825438807,-838.0,0.00020686,2]
[378320853,1754825438817,-460.0,0.00020786,2]
[378320855,1754825438826,-549.97,0.00020786,2]
[378320857,1754825438835,-500.0,0.00020786,2]
[378320859,1754825438844,-442.11078241,0.00020786,2]
[378320861,1754825438854,-500.0,0.00020786,2]
[378320863,1754825438863,-500.0,0.00020786,2]
[378320865,1754825438872,-395.77597986,0.00020786,2]
[378320867,1754825438881,-460.0,0.00020787,2]
[378320869,1754825438891,-460.0,0.00020787,2]
[378320870,1754825438901,-460.0,0.00020787,2]
[378320872,1754825438915,-460.0,0.00020787,2]
[378320874,1754825438924,-460.0,0.00020787,2]
[378320876,1754825438935,-460.0,0.00020787,2]
[378320878,1754825438945,-460.0,0.00020787,2]
[378320880,1754825438961,-460.0,0.00020787,2]
[378320882,1754825438972,-460.0,0.00020787,2]
[378320884,1754825438982,-460.0,0.00020787,2]
[378320886,1754825438991,-231.01008199,0.00020787,2]
[378320888,1754825439001,-460.0,0.00020787,2]
[378320890,1754825439010,-460.0,0.00020787,2]
[378320892,1754825439019,-460.0,0.00020787,2]
[378320894,1754825439028,-460.0,0.00020787,2]
[378320896,1754825439037,-731.64,0.00020787,2]
[378320898,1754825439047,-470.73,0.00020787,2]
[378320900,1754825439056,-460.0,0.00020787,2]
[378320902,1754825439066,-460.0,0.00020787,2]
[378320904,1754825439075,-460.0,0.00020787,2]
[378320906,1754825439084,-896.6,0.00020787,2]
[378320908,1754825439093,-460.0,0.00020787,2]
[378320910,1754825439102,-460.0,0.00020787,2]
[378320912,1754825439112,-462.30223821,0.00020787,2]
[378320914,1754825439121,-460.0,0.00020787,2]
[378320916,1754825439130,-155.90322173,0.00020787,2]
[378320918,1754825439140,-460.0,0.00020787,2]
[378320920,1754825439154,-2537.65,0.00020787,2]
[378320922,1754825439164,-460.0,0.00020787,2]
[378320936,1754825439293,-375.09763164,0.00020787,2]
[378320939,1754825439312,-1003.15,0.00020787,2]
[378320941,1754825439323,-1034.72707156,0.00020787,2]
[378320943,1754825439333,-460.0,0.00020787,2]
[378320945,1754825439343,-460.0,0.00020787,2]
[378320947,1754825439353,-460.0,0.00020787,2]
[378320949,1754825439369,-460.0,0.00020787,2]
[378320951,1754825439379,-460.0,0.00020787,2]
[378320953,1754825439388,-460.0,0.00020787,2]
[378320955,1754825439398,-460.0,0.00020787,2]
[378320957,1754825439407,-460.0,0.00020787,2]
[378320959,1754825439418,-464.59,0.00020787,2]
[378320961,1754825439427,-428.36772716,0.00020787,2]
[378320963,1754825439437,-460.0,0.00020787,2]
[378320965,1754825439447,-460.0,0.00020787,2]
[378320967,1754825439457,-385.26285657,0.00020787,2]
[378320969,1754825439466,-460.0,0.00020787,2]
[378320971,1754825439476,-460.0,0.00020787,2]
[378320973,1754825439485,-460.0,0.00020787,2]
[378320975,1754825439495,-460.0,0.00020787,2]
[378320977,1754825439505,-460.0,0.00020787,2]
[378320979,1754825439515,-460.0,0.00020787,2]
[378320981,1754825439524,-900.83,0.00020787,2]
[378320983,1754825439534,-460.0,0.00020787,2]
[378320985,1754825439543,-460.0,0.00020787,2]
[378320987,1754825439553,-72306.68583674,0.00020788,2]
[378320989,1754825439562,-500.0,0.00020873,2]
[378320991,1754825439571,-461.64841666,0.00020873,2]
[378320993,1754825439581,-500.0,0.00020873,2]
[378320995,1754825439591,-500.0,0.00020873,2]
[378320997,1754825439600,-826.96,0.00020876,3]
[378320999,1754825439609,-220.25403563,0.00020885,2]
[378321001,1754825439619,-500.0,0.00020885,2]
[378321003,1754825439628,-500.0,0.00020885,2]
[378321005,1754825439637,-500.0,0.00020885,2]
[378321007,1754825439650,-500.0,0.00020885,2]
[378321009,1754825439659,-500.0,0.00020885,2]
[378321011,1754825439670,-500.0,0.00020885,2]
[378321013,1754825439679,-500.0,0.00020885,2]
[378321015,1754825439689,-500.0,0.00020885,2]
[378321017,1754825439698,-500.0,0.00020885,2]
[378321019,1754825439708,-460.0,0.00020886,2]
[378321021,1754825439717,-254.7,0.00020886,2]
[378321023,1754825439726,-460.0,0.00020886,2]
[378321024,1754825439735,-460.0,0.00020886,2]
[378321026,1754825439744,-460.0,0.00020886,2]
[378321028,1754825439754,-460.0,0.00020886,2]
[378321030,1754825439763,-509.8503231,0.00020886,2]
[378321032,1754825439773,-460.0,0.00020886,2]
[378321034,1754825439783,-460.0,0.00020886,2]
[378321036,1754825439793,-460.0,0.00020886,2]
[378321038,1754825439802,-460.0,0.00020886,2]
[378321040,1754825439812,-460.0,0.00020886,2]
[378321042,1754825439821,-460.0,0.00020886,2]
[378321044,1754825439831,-460.0,0.00020886,2]
[378321046,1754825439840,-460.0,0.00020886,2]
[378321048,1754825439849,-460.0,0.00020886,2]
[378321050,1754825439859,-460.0,0.00020886,2]
[378321052,1754825439868,-460.0,0.00020886,2]
[378321054,1754825439877,-213.94815516,0.00020886,2]
[378321056,1754825439886,-460.0,0.00020886,2]
[378321058,1754825439895,-460.0,0.00020886,2]
[378321060,1754825439904,-460.0,0.00020886,2]
[378321062,1754825439914,-2411.13,0.00020886,2]
[378321064,1754825439923,-460.0,0.00020886,2]
[378321066,1754825439933,-460.0,0.00020886,2]
[378321068,1754825439943,-460.0,0.00020886,2]
[378321069,1754825439952,-460.0,0.00020886,2]
[378321071,1754825439961,-460.0,0.00020886,2]
[378321073,1754825439971,-460.0,0.00020886,2]
[378321075,1754825439980,-460.0,0.00020886,2]
[378321077,1754825439989,-2098.83,0.00020886,2]
[378321079,1754825439999,-2098.83,0.00020886,2]
[378321081,1754825440008,-460.0,0.00020886,2]
[378321083,1754825440017,-522.04,0.00020886,2]
[378321085,1754825440026,-460.0,0.00020886,2]
[378321087,1754825440036,-460.0,0.00020886,2]
[378321089,1754825440045,-460.0,0.00020886,2]
[378321091,1754825440055,-460.0,0.00020886,2]
[378321093,1754825440064,-460.0,0.00020886,2]
[378321095,1754825440073,-595.26,0.00020886,2]
[378321097,1754825440082,-595.26,0.00020886,2]
[378321099,1754825440091,-460.0,0.00020886,2]
[378321101,1754825440103,-460.0,0.00020886,2]
[378321103,1754825440113,-460.0,0.00020886,2]
[378321105,1754825440122,-460.0,0.00020886,2]
[378321107,1754825440131,-460.0,0.00020886,2]
[378321108,1754825440141,-460.0,0.00020886,2]
[378321110,1754825440156,-509.00107617,0.00020887,2]
[378321112,1754825440167,-460.0,0.00020887,2]
[378321114,1754825440176,-460.0,0.00020887,2]
[378321116,1754825440186,-460.0,0.00020887,2]
[378321118,1754825440195,-460.0,0.00020887,2]
[378321120,1754825440205,-460.0,0.00020887,2]
[378321122,1754825440214,-460.0,0.00020887,2]
[378321124,1754825440223,-460.0,0.00020887,2]
[378321126,1754825440234,-460.0,0.00020887,2]
[378321128,1754825440244,-460.0,0.00020887,2]
[378321131,1754825440253,-460.0,0.00020887,2]
[378321133,1754825440262,-460.0,0.00020887,2]
[378321135,1754825440271,-744.78,0.00020887,2]
[378321137,1754825440280,-550.24,0.00020887,2]
[378321140,1754825440289,-460.0,0.00020887,2]
[378321142,1754825440298,-2098.83,0.00020887,2]
[378321144,1754825440307,-2098.83,0.00020887,2]
[378321146,1754825440317,-2098.83,0.00020887,2]
[378321148,1754825440326,-2098.83,0.00020887,2]
[378321150,1754825440335,-460.0,0.00020887,2]
[378321152,1754825440345,-2098.83,0.00020887,2]
[378321154,1754825440354,-2098.83,0.00020887,2]
[378321156,1754825440362,-2098.83,0.00020887,2]
[378321158,1754825440371,-2098.83,0.00020887,2]
[378321160,1754825440381,-2098.83,0.00020887,2]
[378321161,1754825440399,-2098.83,0.00020887,2]
[378321163,1754825440409,-2098.83,0.00020887,2]
[378321165,1754825440419,-2098.83,0.00020887,2]
[378321167,1754825440428,-2098.83,0.00020887,2]
[378321169,1754825440437,-2098.83,0.00020887,2]
[378321171,1754825440446,-2098.83,0.00020887,2]
[378321173,1754825440456,-2098.83,0.00020887,2]
[378321175,1754825440465,-2098.83,0.00020887,2]
[378321177,1754825440475,-2098.83,0.00020887,2]
[378321179,1754825440484,-2098.83,0.00020887,2]
[378321181,1754825440493,-2098.83,0.00020887,2]
[378321183,1754825440502,-2098.83,0.00020887,2]
[378321185,1754825440511,-2098.8482231,0.00020887,2]
[378321187,1754825440521,-476.85,0.00020887,2]
[378321189,1754825440530,-460.0,0.00020887,2]
[378321191,1754825440539,-595.26,0.00020887,2]
[378321193,1754825440549,-595.26,0.00020887,2]
[378321195,1754825440558,-595.26,0.00020887,2]
[378321197,1754825440567,-595.26,0.00020887,2]
[378321199,1754825440576,-595.26,0.00020887,2]
[378321201,1754825440585,-595.26,0.00020887,2]
[378321203,1754825440594,-595.26,0.00020887,2]
[378321205,1754825440605,-595.26,0.00020887,2]
[378321207,1754825440614,-595.26,0.00020887,2]
[378321209,1754825440623,-595.26,0.00020887,2]
[378321211,1754825440632,-595.26,0.00020887,2]
[378321213,1754825440641,-595.26,0.00020887,2]
[378321215,1754825440651,-595.26,0.00020887,2]
[378321217,1754825440660,-595.26,0.00020887,2]
[378321218,1754825440670,-595.26,0.00020887,2]
[378321220,1754825440680,-595.26,0.00020887,2]
[378321222,1754825440689,-595.26,0.00020887,2]
[378321224,1754825440698,-595.26,0.00020887,2]
[378321226,1754825440708,-595.26,0.00020887,2]
[378321228,1754825440718,-595.26,0.00020887,2]
[378321230,1754825440727,-595.26,0.00020887,2]
[378321233,1754825440737,-595.39195334,0.00020887,2]
[378321234,1754825440747,-460.0,0.00020887,2]
[378321236,1754825440757,-460.0,0.00020887,2]
[378321238,1754825440767,-460.0,0.00020887,2]
[378321240,1754825440776,-460.0,0.00020887,2]
[378321242,1754825440785,-2087.41,0.00020887,2]
[378321244,1754825440794,-520.53,0.00020887,2]
[378321246,1754825440804,-203.67411418,0.00020888,2]
[378321248,1754825440813,-3502.60161593,0.000209,2]
[378321250,1754825440823,-460.0,0.00020923,2]
[378321251,1754825440833,-460.0,0.00020923,2]
[378321252,1754825440842,-460.0,0.00020923,2]
[378321253,1754825440852,-460.0,0.00020923,2]
[378321254,1754825440861,-460.0,0.00020923,2]
[378321255,1754825440871,-248.48533436,0.00020923,2]
[378321256,1754825440880,-717.2,0.00020923,2]
[378321257,1754825440890,-500.0,0.00020973,2]
[378321258,1754825440900,-39516.12317798,0.0002099,2]
[378321259,1754825440909,-230.162785,0.00021,2]
[378321260,1754825440922,-230.162785,0.00021,2]
[378321261,1754825440931,-2000.0,0.00021,7]
[378321262,1754825440941,-202.84645084,0.00021,2]
[378321263,1754825440951,-230.162785,0.00021021,2]
[378321264,1754825440961,-230.162785,0.00021021,2]
[378321265,1754825440970,-824.785989,0.00021021,2]
[378321266,1754825440979,-824.785989,0.00021021,2]
[378321267,1754825440989,-151.0,0.00021021,2]
[378321268,1754825440998,-151.0,0.00021021,2]
[378321269,1754825441008,-230.162785,0.00021022,2]
[378321270,1754825441018,-230.162785,0.00021022,2]
[378321271,1754825441027,-230.162785,0.00021022,2]
[378321272,1754825441036,-230.162785,0.00021022,2]
[378321273,1754825441046,-230.162785,0.00021022,2]
[378321274,1754825441056,-230.162785,0.00021022,2]
[378321275,1754825441066,-824.785989,0.00021022,2]
[378321276,1754825441075,-824.785989,0.00021022,2]
[378321278,1754825441084,-824.785989,0.00021022,2]
[378321280,1754825441094,-824.785989,0.00021022,2]
[378321282,1754825441103,-824.785989,0.00021022,2]
[378321284,1754825441113,-824.785989,0.00021022,2]
[378321286,1754825441123,-151.0,0.00021022,2]
[378321288,1754825441132,-151.0,0.00021022,2]
[378321289,1754825441142,-151.0,0.00021022,2]
[378321292,1754825441157,-173.449167,0.00021022,2]
[378321293,1754825441168,-230.162785,0.00021023,2]
[378321295,1754825441178,-230.162785,0.00021023,2]
[378321297,1754825441187,-824.785989,0.00021023,2]
[378321299,1754825441196,-824.785989,0.00021023,2]
[378321301,1754825441215,-151.0,0.00021023,2]
[378321303,1754825441225,-230.162785,0.00021024,2]
[378321305,1754825441235,-230.162785,0.00021024,2]
[378321308,1754825441245,-824.785989,0.00021024,2]
[378321310,1754825441254,-824.785989,0.00021024,2]
[378321312,1754825441264,-151.0,0.00021024,2]
[378321314,1754825441273,-460.0,0.0002106,2]
[378321316,1754825441283,-460.0,0.00021061,2]
[378321318,1754825441291,-460.0,0.00021061,2]
[378321319,1754825441301,-460.0,0.00021061,2]
[378321321,1754825441313,-731.64,0.00021061,2]
[378321323,1754825441322,-599.32813433,0.00021061,2]
[378321325,1754825441331,-460.0,0.00021061,2]
[378321327,1754825441341,-896.6,0.00021061,2]
[378321329,1754825441350,-460.0,0.00021061,2]
[378321331,1754825441359,-2537.65,0.00021061,2]
[378321333,1754825441368,-460.0,0.00021061,2]
[378321335,1754825441377,-1003.15,0.00021061,2]
[378321337,1754825441387,-460.0,0.00021061,2]
[378321339,1754825441397,-460.0,0.00021061,2]
[378321341,1754825441407,-460.0,0.00021061,2]
[378321343,1754825441417,-460.0,0.00021061,2]
[378321345,1754825441427,-464.59,0.00021061,2]
[378321347,1754825441444,-460.0,0.00021061,2]
[378321349,1754825441455,-460.0,0.00021061,2]
[378321351,1754825441464,-460.0,0.00021061,2]
[378321353,1754825441473,-460.0,0.00021061,2]
[378321355,1754825441483,-432.82,0.00021061,2]
[378321357,1754825441492,-460.0,0.00021061,2]
[378321359,1754825441502,-460.0,0.00021061,2]
[378321361,1754825441511,-900.83,0.00021061,2]
[378321363,1754825441520,-460.0,0.00021061,2]
[378321365,1754825441529,-460.0,0.00021061,2]
[378321367,1754825441538,-500.0,0.00021073,2]
[378321369,1754825441548,-501.75946072,0.00021073,2]
[378321371,1754825441557,-501.15255493,0.00021073,2]
[378321373,1754825441566,-500.0,0.00021073,2]
[378321375,1754825441575,-500.0,0.00021073,2]
[378321377,1754825441585,-500.0,0.00021073,2]
[378321379,1754825441595,-230.162785,0.00021073,2]
[378321381,1754825441604,-230.162785,0.00021073,2]
[378321383,1754825441613,-824.785989,0.00021073,2]
[378321385,1754825441623,-824.785989,0.00021073,2]
[378321387,1754825441632,-151.0,0.00021073,2]
[378321389,1754825441642,-236.10091643,0.0002116,2]
[378321391,1754825441651,-460.0,0.0002116,2]
[378321393,1754825441659,-528.02175843,0.0002116,2]
[378321395,1754825441670,-386.68061684,0.0002116,2]
[378321397,1754825441680,-245.57101035,0.0002116,2]
[378321399,1754825441689,-460.0,0.0002116,2]
[378321401,1754825441698,-460.0,0.0002116,2]
[378321403,1754825441707,-460.0,0.0002116,2]
[378321405,1754825441716,-460.0,0.0002116,2]
[378321407,1754825441725,-460.0,0.0002116,2]
[378321409,1754825441734,-460.0,0.0002116,2]
[378321411,1754825441743,-460.0,0.0002116,2]
[378321413,1754825441753,-2411.13,0.0002116,2]
[378321415,1754825441763,-451.26901687,0.0002116,2]
[378321417,1754825441772,-522.04,0.0002116,2]
[378321419,1754825441781,-460.0,0.0002116,2]
[378321421,1754825441790,-460.0,0.0002116,2]
[378321423,1754825441799,-460.0,0.00021161,2]
[378321425,1754825441808,-460.0,0.00021161,2]
[378321427,1754825441818,-460.0,0.00021161,2]
[378321429,1754825441827,-460.0,0.00021161,2]
[378321431,1754825441836,-744.78,0.00021161,2]
[378321433,1754825441846,-550.24,0.00021161,2]
[378321435,1754825441855,-460.0,0.00021161,2]
[378321437,1754825441865,-476.85,0.00021161,2]
[378321439,1754825441875,-460.0,0.00021161,2]
[378321441,1754825441884,-460.0,0.00021161,2]
[378321443,1754825441893,-460.0,0.00021161,2]
[378321445,1754825441903,-460.0,0.00021161,2]
[378321447,1754825441912,-2087.41,0.00021161,2]
[378321449,1754825441922,-520.53,0.00021161,2]
[378321451,1754825441931,-465.95640775,0.00021197,2]
[378321453,1754825441940,-460.0,0.00021197,2]
[378321455,1754825441949,-717.2,0.00021197,2]
[378321457,1754825441959,-197.87,0.0002121,2]
[378321459,1754825441970,-230.162785,0.00021273,2]
[378321461,1754825441984,-230.162785,0.00021273,2]
[378321463,1754825442001,-230.162785,0.00021295,2]
[378321465,1754825442013,-230.162794,0.00021295,2]
[378321467,1754825442022,-824.785989,0.00021295,2]
[378321469,1754825442031,-824.785989,0.00021295,2]
[378321471,1754825442040,-151.0,0.00021295,2]
[378321473,1754825442049,-824.785989,0.00021296,2]
[378321475,1754825442058,-824.785989,0.00021296,2]
[378321477,1754825442067,-824.785989,0.00021296,2]
[378321478,1754825442076,-824.785987,0.00021296,2]
[378321480,1754825442085,-151.0,0.00021296,2]
[378321482,1754825442094,-151.0,0.00021296,2]
[378321484,1754825442104,-327.0,0.00021308,2]
[378321486,1754825442113,-460.0,0.00021334,2]
[378321488,1754825442122,-460.0,0.00021335,2]
[378321490,1754825442131,-460.0,0.00021335,2]
[378321492,1754825442140,-460.0,0.00021335,2]
[378321494,1754825442153,-731.64,0.00021335,2]
[378321496,1754825442162,-896.6,0.00021335,2]
[378321499,1754825442172,-460.0,0.00021335,2]
[378321501,1754825442181,-2537.65,0.00021335,2]
[378321502,1754825442191,-460.0,0.00021335,2]
[378321504,1754825442200,-1003.15,0.00021335,2]
[378321518,1754825442314,-460.0,0.00021335,2]
[378321520,1754825442324,-460.0,0.00021335,2]
[378321521,1754825442333,-460.0,0.00021335,2]
[378321523,1754825442343,-460.0,0.00021335,2]
[378321525,1754825442352,-464.59,0.00021335,2]
[378321527,1754825442361,-460.0,0.00021335,2]
[378321529,1754825442370,-460.0,0.00021335,2]
[378321531,1754825442379,-460.0,0.00021335,2]
[378321533,1754825442388,-460.0,0.00021335,2]
[378321535,1754825442398,-460.0,0.00021335,2]
[378321537,1754825442407,-900.83,0.00021335,2]
[378321539,1754825442416,-460.0,0.00021335,2]
[378321541,1754825442426,-1000.0,0.00021421,2]
[378321543,1754825442435,-1000.0,0.00021421,2]
[378321545,1754825442446,-460.0,0.00021434,2]
[378321547,1754825442456,-460.0,0.00021434,2]
[378321549,1754825442466,-460.0,0.00021434,2]
[378321551,1754825442476,-460.0,0.00021434,2]
[378321553,1754825442486,-2411.13,0.00021434,2]
[378321555,1754825442495,-522.04,0.00021434,2]
[378321557,1754825442505,-460.0,0.00021434,2]
[378321559,1754825442514,-486.5,0.00021434,2]
[378321561,1754825442524,-460.0,0.00021435,2]
[378321563,1754825442534,-460.0,0.00021435,2]
[378321565,1754825442543,-460.0,0.00021435,2]
[378321567,1754825442553,-744.78,0.00021435,2]
[378321569,1754825442562,-550.24,0.00021435,2]
[378321571,1754825442571,-460.0,0.00021435,2]
[378321573,1754825442580,-476.85,0.00021435,2]
[378321575,1754825442590,-460.0,0.00021435,2]
[378321577,1754825442600,-460.0,0.00021435,2]
[378321579,1754825442609,-2087.41,0.00021435,2]
[378321581,1754825442618,-520.53,0.00021435,2]
[378321583,1754825442627,-460.0,0.00021471,2]
[378321585,1754825442636,-717.2,0.00021471,2]
[378321587,1754825442646,-313.66190617,0.00021521,2]
[378321589,1754825442655,-460.0,0.00021608,2]
[378321591,1754825442664,-460.0,0.00021609,2]
[378321592,1754825442673,-460.0,0.00021609,2]
[378321594,1754825442682,-731.64,0.00021609,2]
[378321596,1754825442691,-896.6,0.00021609,2]
[378321598,1754825442700,-2537.65,0.00021609,2]
[378321600,1754825442710,-460.0,0.00021609,2]
[378321602,1754825442719,-1003.15,0.00021609,2]
[378321604,1754825442728,-281.18991007,0.00021609,2]
[378321606,1754825442737,-460.0,0.00021609,2]
[378321608,1754825442747,-460.0,0.00021609,2]
[378321610,1754825442757,-464.59,0.00021609,2]
[378321612,1754825442769,-460.0,0.00021609,2]
[378321614,1754825442778,-460.0,0.00021609,2]
[378321616,1754825442787,-460.0,0.00021609,2]
[378321618,1754825442797,-460.0,0.00021609,2]
[378321621,1754825442807,-460.0,0.00021609,2]
[378321623,1754825442816,-900.83,0.00021609,2]
[378321624,1754825442825,-460.0,0.00021609,2]
[378321626,1754825442835,-5179.06282851,0.00021655,2]
[378321628,1754825442844,-635.8300829,0.00021655,2]
[378321630,1754825442853,-2871.24929607,0.00021708,2]
[378321632,1754825442863,-460.0,0.00021708,2]
[378321634,1754825442873,-460.0,0.00021708,2]
[378321636,1754825442883,-460.0,0.00021708,2]
[378321638,1754825442892,-460.0,0.00021708,2]
[378321640,1754825442901,-2411.13,0.00021708,2]
[378321642,1754825442910,-522.04,0.00021708,2]
[378321644,1754825442921,-460.0,0.00021709,2]
[378321646,1754825442930,-460.0,0.00021709,2]
[378321648,1754825442939,-460.0,0.00021709,2]
[378321650,1754825442948,-744.78,0.00021709,2]
[378321652,1754825442957,-550.24,0.00021709,2]
[378321654,1754825442967,-460.0,0.00021709,2]
[378321656,1754825442976,-476.85,0.00021709,2]
[378321658,1754825442985,-460.0,0.00021709,2]
[378321660,1754825442994,-2087.41,0.00021709,2]
[378321662,1754825443003,-520.53,0.00021709,2]
[378321664,1754825443012,-469.0633678,0.00021745,2]
[378321666,1754825443021,-717.2,0.00021745,2]
[378321668,1754825443031,-420.0,0.00021777,2]
[378321670,1754825443040,-1034.72707155,0.0002179,2]
[378321672,1754825443049,-1680.0,0.00021881,2]
[378321674,1754825443058,-1000.0,0.00021882,2]
[378321676,1754825443068,-460.0,0.00021882,2]
[378321678,1754825443077,-460.0,0.00021883,2]
[378321680,1754825443087,-460.0,0.00021883,2]
[378321682,1754825443096,-731.64,0.00021883,2]
[378321684,1754825443106,-896.6,0.00021883,2]
[378321686,1754825443115,-2537.65,0.00021883,2]
[378321687,1754825443124,-460.0,0.00021883,2]
[378321689,1754825443133,-1003.15,0.00021883,2]
[378321691,1754825443143,-460.0,0.00021883,2]
[378321693,1754825443158,-460.0,0.00021883,2]
[378321695,1754825443168,-464.59,0.00021883,2]
[378321697,1754825443177,-460.0,0.00021883,2]
[378321699,1754825443186,-460.0,0.00021883,2]
[378321701,1754825443196,-460.0,0.00021883,2]
[378321703,1754825443205,-460.0,0.00021883,2]
[378321705,1754825443215,-460.0,0.00021883,2]
[378321707,1754825443224,-900.83,0.00021883,2]
[378321709,1754825443234,-460.0,0.00021883,2]
[378321711,1754825443243,-4856.98,0.00021917,2]
[378321713,1754825443252,-1500.0,0.00021968,2]
[378321715,1754825443261,-1010.68367649,0.00021968,2]
[378321717,1754825443271,-600.0,0.00021973,2]
[378321719,1754825443280,-500.0,0.00021973,2]
[378321721,1754825443289,-500.0,0.00021973,2]